Cogmind - Beta 13 @@@ ROGUE MODE // 2024.04.05 @ 17:55:05 Player: Sin Result: Destroyed by Y-45 Defender with Heavy Assault Rifle Performance ------------- Evolutions (2) 1000 Regions Visited (4) 800 Robots Destroyed (40) 200 Value Destroyed (1084) 1084 Prototype IDs (0) 0 Alien Tech Used (0) 0 Bonus (0) 0 TOTAL SCORE: 3084 Bonus ------- None Cogmind --------- Core Integrity 0/550 Matter 300/300 Energy 151/265 System Corruption 0% Temperature Warm (150) Movement Treading (160) Location -8/Materials Parts ------- > --- POWER (2) -------- Improved Ion Engine > --- PROPULSION (3) --- Light Treads Light Treads Light Treads > --- UTILITY (4) ------ Advanced Weight Redist. System Machine Analyzer Targeting Computer Long-range Tractor Beam > --- WEAPON (2) ------- Beam Rifle Beam Rifle > --- INVENTORY (5) ---- Machine Analyzer Beam Rifle Light Assault Rifle Hammer Peak State ------------ > --- POWER ------------ Improved Ion Engine > --- PROPULSION ------- Light Treads Light Treads Light Treads > --- UTILITY ---------- Advanced Weight Redist. System Machine Analyzer Machine Analyzer Long-range Tractor Beam > --- WEAPON ----------- Beam Rifle Beam Rifle > --- INVENTORY -------- Machine Analyzer Beam Rifle Light Assault Rifle Hammer [Rating: 21] Favorites ----------- Power Light Ion Engine Engine Light Ion Engine Power Core Light Nuclear Core Propulsion Light Treads Treads Light Treads Leg Aluminum Leg Utility Seismic Detector Device Seismic Detector Processor Machine Analyzer Weapon Light Assault Rifle Energy Gun Beam Rifle Energy Cannon Heavy Particle Cannon Ballistic Gun Light Assault Rifle Launcher Rocket Launcher Special Weapon Mining Laser Impact Weapon Hammer Build | -11 -10 -10 -9 -8 ------- Run | Yrd Mat Min Mat Mat Slots Evolved 4 | . . . 2 2 Power 1 | . . . 1 . Propulsion 1 | . . . . 1 Utility 2 | . . . 1 1 Weapon . | . . . . . Parts Attached 45 | 3 3 7 9 23 Power 8 | . 2 1 2 3 Engine 7 | . 2 1 2 2 Core 1 | . . . . 1 Reactor . | . . . . . Propulsion 10 | 2 . . 4 4 Treads 8 | 2 . . 3 3 Leg 2 | . . . 1 1 Wheel . | . . . . . Hover . | . . . . . Flight . | . . . . . Utility 7 | . . 1 . 6 Device 4 | . . 1 . 3 Storage . | . . . . . Processor 3 | . . . . 3 Hackware . | . . . . . Protection . | . . . . . Artifact . | . . . . . Weapon 20 | 1 1 5 3 10 Energy Gun 4 | . . . 1 3 Energy Cannon 1 | . . . . 1 Ballistic Gun 7 | 1 1 1 1 3 Ballistic Cannon . | . . . . . Launcher 3 | . . 2 . 1 Special Weapon 2 | . . 1 . 1 Impact Weapon 3 | . . 1 1 1 Slashing Weapon . | . . . . . Piercing Weapon . | . . . . . Special Melee Weapon . | . . . . . Unidentified Prototypes . | . . . . . Parts Lost 22 | . . 1 8 13 Power 5 | . . . 2 3 Propulsion 5 | . . 1 1 3 Utility 2 | . . . 1 1 Weapon 10 | . . . 4 6 Highest Loss Streak 4 | . . 1 3 4 To Critical Strikes . | . . . . . Average Slot Usage (%) 58 | . 71 60 55 52 Engine 11 | . 14 14 11 5 Core 1 | . . . . 5 Treads 14 | . 28 14 8 12 Device 4 | . . 3 10 3 Processor 2 | . . . . 9 Energy Gun 1 | . . . 2 6 Ballistic Gun 10 | . 28 10 8 4 Launcher 6 | . . 11 5 1 Impact Weapon 4 | . . 5 2 3 Naked Turns . | . . . . . Heaviest Build 20 | 1 6 9 20 18 Greatest Support 69 | 40 40 40 40 69 Greatest Overweight (x) 3 | . . . 2 3 Average Overweight (x) . | . . . . . Largest Inventory Capacity 5 | 5 5 5 5 5 Average Capacity 5 | 5 5 5 5 5 Most Carried 5 | 2 1 4 5 5 Average Carried 2 | 1 . 2 2 2 Final Capacity 5 | 5 5 5 5 5 Final Carried 4 | 2 1 3 1 4 Class Distribution -------------------- 90% | Mutant 9% | Scavenger-Mutant Dominant Class ---------------- Mutant | -10/Materials Mutant | -10/Mines Mutant | -9/Materials Mutant | -8/Materials Resources | -11 -10 -10 -9 -8 ----------- Run | Yrd Mat Min Mat Mat Matter Collected 1080 | 179 43 323 151 384 Remotely 134 | . . . . 134 Salvage Created 1313 | . 61 146 412 694 Parts 69 | . 8 3 23 35 Haulers Intercepted . | . . . . . Recyclers Shooed 2 | . 1 . . 1 Parts Field Recycled . | . . . . . Retrieved Matter . | . . . . . Parts Self-Destructed . | . . . . . Prevented . | . . . . . Kills | -11 -10 -10 -9 -8 ------- Run | Yrd Mat Min Mat Mat Combat Hostiles Destroyed 33 | . 3 7 9 14 Melee 7 | . . 3 2 2 Guns 15 | . 3 2 2 8 Cannons 1 | . . . . 1 AOE 8 | . . 1 5 2 Classes Destroyed 11 | . 2 3 4 2 Worker 3 | . 1 2 . . Builder 2 | . . . 2 . Recycler 4 | . . 1 1 2 Watcher 3 | . . . 2 1 Swarmer 8 | . 3 . . 5 Grunt 11 | . . 2 5 4 Brawler 1 | . . . . 1 Duelist 1 | . . . 1 . Sentry 6 | . . . 3 3 Hunter 1 | . . . . 1 Assembled 5 | . . 5 . . Best Kill Streak 10 | . 3 4 10 7 Combat Bots Only 6 | . 3 2 3 6 Max Kills in Single Turn 3 | . 1 2 3 1 Gunslinging . | . . . . . Exploded 2 | . . 1 2 1 Melee 1 | . . 1 1 1 Uniques/NPCs Destroyed . | . . . . . Combat | -11 -10 -10 -9 -8 -------- Run | Yrd Mat Min Mat Mat Hostile Shots Fired 340 | . 19 36 69 216 Missed 105 | . 6 12 15 72 Damage Taken 2981 | . 105 400 779 1697 Core 821 | . 14 59 192 556 Absorbed by Shields . | . . . . . Core Remaining (%) 74 | 100 . 70 52 . Volleys Fired 121 | . 11 28 23 59 Largest 2 | . 2 2 2 2 Hottest 112 | . 40 100 53 112 Shots Fired 184 | . 22 38 36 88 Gun 146 | . 22 25 26 73 Cannon 9 | . . . . 9 Launcher 27 | . . 11 10 6 Special 2 | . . 2 . . Kinetic 123 | . 22 25 26 50 Thermal 29 | . . 2 . 27 Explosive 27 | . . 11 10 6 Electromagnetic 5 | . . . . 5 Robot Hit Streak 10 | . 3 6 7 10 Robot Miss Streak 6 | . 4 6 3 6 Penetration Max . | . . . . . Secondary Targets . | . . . . . Shots Hit Robots 145 | . 10 22 41 72 Core Hits 78 | . 5 16 25 32 Critical Kills 3 | . . . 1 2 Critical Parts Destroyed 8 | . 1 1 2 4 Critical Strikes 11 | . 1 1 3 6 Meltdown 1 | . . . . 1 Destroy 2 | . 1 . . 1 Smash 8 | . . 1 3 4 Melee Attacks 52 | . . 22 20 10 Impact 52 | . . 22 20 10 Slashing . | . . . . . Piercing . | . . . . . Sneak Attacks 4 | . . 1 . 3 Combat Hostiles . | . . . . . Follow-up Attacks . | . . . . . Damage Inflicted 3436 | . 107 761 1155 1413 Guns 1072 | . 107 128 163 674 Cannons 150 | . . . . 150 Explosions 1353 | . . 455 613 285 Melee 861 | . . 178 379 304 Ramming . | . . . . . Kinetic 777 | . 107 128 163 379 Thermal 436 | . . . . 436 Explosive 1274 | . . 455 613 206 Electromagnetic 88 | . . . . 88 Impact 861 | . . 178 379 304 Slashing . | . . . . . Piercing . | . . . . . Highest Corruption . | . . . . . Average Corruption . | . . . . . Corruption Purged . | . . . . . Corruption Blocked . | . . . . . Overload Shots . | . . . . . Overflow Damage 288 | . . 71 79 138 Projectiles 20 | . . . . 20 Explosions 30 | . . . 21 9 Melee 238 | . . 71 58 109 Knockbacks 3 | . . 1 2 . Impact 3 | . . 1 2 . Kinetic . | . . . . . Secondary . | . . . . . Self-Inflicted Damage 149 | . . 4 57 88 Shots 7 | . . 1 2 4 Rammed . | . . . . . Targets Rammed . | . . . . . Kicked . | . . . . . Crushed . | . . . . . Highest Temperature 180 | . . 40 13 180 Average Temperature 44 | . . 16 5 65 Received Heat Transfer 756 | . . 57 330 369 Siege Activations . | . . . . . Robots Corrupted . | . . . . . Combat Hostiles . | . . . . . Parts Fried 1 | . . . . 1 Impact Corruptions 11 | . . 3 3 5 Robots Melted 1 | . . . . 1 Combat Hostiles 1 | . . . . 1 Parts Melted . | . . . . . Heat Transferred 840 | . . . . 840 Parts Sabotaged . | . . . . . Parts Stolen . | . . . . . Parts Stripped . | . . . . . Power Chain Reactions 1 | . . . . 1 Alert | -11 -10 -10 -9 -8 ------- Run | Yrd Mat Min Mat Mat Peak Influence 352 | . 105 92 352 255 Initial 74 | . . 40 . 74 Average 76 | . 53 19 227 112 Maximum Alert Level 1 | . . . 1 1 Low Security (%) 84 | 100 100 100 30 79 Level 1 15 | . . . 69 20 Level 2 . | . . . . . Level 3 . | . . . . . Level 4 . | . . . . . Level 5 . | . . . . . High Security . | . . . . . Max Security . | . . . . . Squads Dispatched 6 | . 2 . 1 3 Investigation 4 | . 1 . 1 2 Extermination . | . . . . . Reinforcement 2 | . 1 . . 1 Assault . | . . . . . Garrison . | . . . . . Intercept . | . . . . . Searches Triggered . | . . . . . Construction Impeded 1 | . . . . 1 Haulers Reinforced . | . . . . . Active Scanning Responses . | . . . . . Cargo Convoy Interrupts . | . . . . . Stealth | -11 -10 -10 -9 -8 --------- Run | Yrd Mat Min Mat Mat Distress Signals 3 | . . . 1 2 Communications Jammed . | . . . . . Distress Signals . | . . . . . Times Spotted 47 | . 7 8 12 20 Peak Tracking Total 12 | . 3 12 4 9 Tactical Retreats 3 | . . 1 . 2 Traps | -11 -10 -10 -9 -8 ------- Run | Yrd Mat Min Mat Mat Traps Triggered 2 | . 1 . 1 . Indirectly . | . . . . . Trap Hack Attempts . | . . . . . Triggered . | . . . . . Disarmed . | . . . . . Reprogrammed . | . . . . . Reused . | . . . . . Traps Extracted . | . . . . . Installed . | . . . . . Triggered 1 | . . . . 1 Machines | -11 -10 -10 -9 -8 ---------- Run | Yrd Mat Min Mat Mat Machines Disabled 5 | . . . 3 2 Max in Single Turn 1 | . . . 1 1 Machines Repaired . | . . . . . Machines Dismantled . | . . . . . Machines Sabotaged . | . . . . . Overloaded Fab Kills . | . . . . . Hacking | -11 -10 -10 -9 -8 --------- Run | Yrd Mat Min Mat Mat Machines Accessed 2 | . . . . 2 Terminals 2 | . . . . 2 Fabricators . | . . . . . Repair Stations . | . . . . . Recycling Units . | . . . . . Scanalyzers . | . . . . . Garrison Access . | . . . . . Total Hacks 9 | . . . . 9 Successful 4 | . . . . 4 Failed 5 | . . . . 5 Catastrophic 2 | . . . . 2 Database Lockouts . | . . . . . Manual 5 | . . . . 5 Terminals 9 | . . . . 9 Fabricators . | . . . . . Repair Stations . | . . . . . Recycling Units . | . . . . . Scanalyzers . | . . . . . Garrison Access . | . . . . . Terminal Hacks 3 | . . . . 3 Robot Analysis 1 | . . . . 1 Emergency Access Points 1 | . . . . 1 Unreport Threat 1 | . . . . 1 Fabricator Hacks . | . . . . . Repair Station Hacks . | . . . . . Recycling Unit Hacks . | . . . . . Scanalyzer . | . . . . . Garrison Access Hacks . | . . . . . Unauthorized Hacks 1 | . . . . 1 Terminals 1 | . . . . 1 Botnet 1 | . . . . 1 Fabricators . | . . . . . Repair Stations . | . . . . . Recycling Units . | . . . . . Scanalyzers . | . . . . . Garrison Access . | . . . . . Data Cores Recovered . | . . . . . Used . | . . . . . Hacking Detections 2 | . . . . 2 Full Trace Events 1 | . . . . 1 Feedback Events . | . . . . . Feedback Blocked . | . . . . . Robot Schematics Acquired . | . . . . . Robots Built . | . . . . . Authchips . | . . . . . Time . | . . . . . Total Robot Build Rating . | . . . . . Part Schematics Acquired . | . . . . . Parts Built . | . . . . . Authchips . | . . . . . Time . | . . . . . Total Part Build Rating . | . . . . . Parts Repaired . | . . . . . Time . | . . . . . Parts Recycled . | . . . . . Recycled Matter . | . . . . . Retrieved Matter . | . . . . . Retrieved Components . | . . . . . Parts Scanalyzed . | . . . . . Part Schematics Acquired . | . . . . . Parts Damaged . | . . . . . Bothacking | -11 -10 -10 -9 -8 ------------ Run | Yrd Mat Min Mat Mat Used RIF Installer . | . . . . . Robots Hacked . | . . . . . Non-combat . | . . . . . Combat . | . . . . . Robot Hacks Applied . | . . . . . Relay Couplers Released . | . . . . . Fabnet Peak Effective % . | . . . . . Robots Rewired . | . . . . . Allies Hacked . | . . . . . Hacks Repelled . | . . . . . Allies | -11 -10 -10 -9 -8 -------- Run | Yrd Mat Min Mat Mat Total Allies 1 | . . 1 . . Largest Group 1 | . . 1 . . Highest-Rated Group 31 | . . 31 . . Highest-Rated Ally 31 | . . 31 . . Total Orders . | . . . . . Ally Attacks . | . . . . . Total Damage . | . . . . . Kills . | . . . . . Allies Corrupted . | . . . . . Allies Melted . | . . . . . Intel | -11 -10 -10 -9 -8 ------- Run | Yrd Mat Min Mat Mat Robot Analysis Total 1 | . . . . 1 Derelict Logs Recovered 1 | . . 1 . . Drone Launches . | . . . . . Drone Recoveries . | . . . . . Exploration | -11 -10 -10 -9 -8 ------------- Run | Yrd Mat Min Mat Mat Turns Passed 2976 | 52 295 1495 486 648 Spaces Moved 1576 | 33 158 844 267 274 Core 81 | 7 . . 11 63 Treads 1313 | 26 158 844 97 188 Legs 182 | . . . 159 23 Wheels . | . . . . . Hover . | . . . . . Flight . | . . . . . Fastest Speed 50 | 50 160 160 120 50 Average Speed 154 | 136 160 160 135 152 Slowest Speed 200 | 160 160 160 160 200 Overloaded Moves . | . . . . . Propulsion Burnouts . | . . . . . Robots Hopped . | . . . . . Cave-ins Triggered . | . . . . . Exploration Rate (%) 35 | 3 31 99 19 27 Regions Visited 4 Branch Regions 1 Pre-discovered Areas . | . . . . . Known Exits Taken . | . . . . . Unknown Exits Taken 4 | 1 1 1 1 . Scrap Searched 1 | . . 1 . . Spaces Dug 17 | . . 17 . . Terrain Destroyed 210 | . . 92 68 50 Melee 4 | . . 4 . . Projectile 2 | . . 2 . . AOE 204 | . . 86 68 50 Terrain Rammed . | . . . . . Walls Destroyed . | . . . . . Machines Disabled . | . . . . . Actions | -11 -10 -10 -9 -8 --------- Run | Yrd Mat Min Mat Mat Total 1856 | 40 181 909 323 403 Wait 22 | . 7 3 . 12 Move 1572 | 32 157 843 266 274 Hop . | . . . . . Pick Up 38 | 5 2 4 4 23 Fast Attach 3 | . . . 2 1 Attach 32 | 3 2 2 6 19 Detach 1 | . . 1 . . Swap 10 | . 1 5 1 3 Drop 5 | . 1 1 1 2 Fire 121 | . 11 28 23 59 Melee 52 | . . 22 20 10 Ram . | . . . . . Kick . | . . . . . Crush . | . . . . . Escape Stasis . | . . . . . Rewire . | . . . . . Trap . | . . . . . Miscellaneous . | . . . . . Route ------- -11/Scrapyard -10/Materials -10/Mines (discovered 3 exits: [*Mat x2] / Sub) -9/Materials -8/Materials (discovered 1 exit: [*Fac]) History --------- Turn | Location | Event 26 | -11/Scrapyard | Discovered new exit (range 15) 53 | -11/Scrapyard | Entered Materials 281 | -10/Materials | Discovered new exit (range 8) 311 | -10/Materials | Build established: Mutant 348 | -10/Materials | Entered Mines 383 | -10/Mines | Assembled infested the area 488 | -10/Mines | Discovered new exit (range 13) 588 | -10/Mines | Received a Rocket Launcher from a helpful Derelict 771 | -10/Mines | Discovered new exit (range 8) 1308 | -10/Mines | Identified exit to Subcaves 1324 | -10/Mines | Received a Mining Laser from a helpful Derelict 1843 | -10/Mines | Entered Materials 1843 | -9/Materials | Evolved 2 slots: Power x1, Utility x1 2137 | -9/Materials | Lost 3 parts (1p2w) 2168 | -9/Materials | Discovered new exit (range 5) 2329 | -9/Materials | Entered another Materials area 2329 | -8/Materials | Evolved 2 slots: Propulsion x1, Utility x1 2620 | -8/Materials | Lost 4 parts (1p2n1w) 2745 | -8/Materials | Lost 4 parts (1p3w) 2756 | -8/Materials | Core integrity fell below 50% 2805 | -8/Materials | Core integrity fell below 20% 2811 | -8/Materials | Lost 4 parts (1p1n1u1w) 2948 | -8/Materials | Discovered new exit (range 8) 2977 | -8/Materials | Destroyed by Y-45 Defender with Heavy Assault Rifle Last Messages --------------- 02853_ Acquired Beam Rifle. 02867_ Acquired Adv. Weight Redist. System. 02871_ Acquired Lrn. Tractor Beam. 02872_ Acquired 104 matter. 02874_ Acquired 10 matter. 02885_ Acquired Imp. Ion Engine. 02894_ Acquired 5 matter. 02897_ ALERT: Alarm triggered, dispatching investigation squad. 02911_ Penetrated by Slug. 02917_ Slug penetrates Wall. 02922_ H-55 Commando destroyed. 02926_ U-05 Engineer builds a Wall. 02935_ Discarded Machine Analyzer. 02935_ Acquired Targeting Computer. 02937_ Acquired 10 matter. 02948_ EXIT=FOUND 02961_ >> Machine Analyzer network decryption results: 02961_ Scanalyzer x2 02977_ Y-45 Defender heat damages Lgt. Treads, Hvy. Assault Rifle, Lgt. Armor Plating. Map ----- +----------------------------------------------------+ | """ """ #????????????????????????????? | | #????????????????????????????? | | ] #????????????????????????????? | | #????????????????????????????? | | = #????????????????????????????? | | ######+#??????????????????????????????? | | #?????????????????????????????????????? | | #?????????????????????????????????????? | | #?????????????????????????????????????? | | #?????????????????????????????????????? | | #########?????????????????"""?????????? | | #?????????????????"""?????????? | | #?????????????????"""?????????? | | #?????????????????????????????? | | #?????????????????????????????? | | #?????????????????????????????? | | #?????????????????????????????? | | #?????????????????????????????? | | #??????????????##?????????????? | | /########????????#######Y########?????? | | #???????????????# "" ##!!!!##????? | | #???????????????# ""S #! !#????? | | #???????????????# "" # #????? | | #???????????????# # ##???? | | #???????????????# a # #???? | | ##??????????????# """ @/ < #???? | | ###?????????????# """ # #???? | | ###?????????????# """ # #####???? | | ###?????????????# # #???????? | | =###?????????????########## #???????? | | *###??????????????# != + #???????? | | =# ########???????## % # #???????? | | # ################# = # #???????? | | #!# [!+%[= +% # #???????? | | ### """ !!%########[ # #???????? | | # """ !#?????# # #???????? | | # " [[[##?????######## #???????? | | + [[=##????????????# #???????? | | %! # """ ##????????????# #???????? | | = # """ ##????????????# #???????? | | = ## """ ##?"""????????# #???????? | | ## #??"""????????# #???????? | | ###########??"""????????# #???????? | | ##???????????"""????????? #???????? | | ##???????????"""????????? #???????? | | ##??????????????????????? ????????? | | ##??????????????????????????????????? | | ??????????????????????????????????? | | ??????????????????????????????????? | | ##???????????????????????????????? | +----------------------------------------------------+ Best States ------------- Heat Dissipation 31 Energy Generation 21 Energy Capacity 430 Matter Stores 300 Matter Capacity 300 Sight Range 16 Terrain Scan Density 10 Additional Mass Support 9 Evasion (%) 55 Targeting Accuracy 5 Recoil Reduction 3 Item Schematics ----------------- None Robot Schematics ------------------ None Fabricated ------------ Nothing Alien Tech Used ----------------- None Achievements -------------- I Survived The Infestation Challenges ------------ None Game ------ Seed HugeMasterBarrier Manual? 0 Play Time 00:23:59 Cumulative 6.1 hours Start 2024.04.05 @ 17:32:00 End 2024.04.05 @ 17:55:05 Sessions 1 Manual Loads 0 Difficulty Rogue Special Mode None Game No. 7 Rogue 2 Adventurer 0 Explorer 5 Win Type - Total 0 Types 0/0/0/0/0/0/0/0/0 Lore% 15 Gallery% 13 Achievement% 16 Wizard Run 0 Options --------- Layout 0 ASCII 0 Keyboard 0 Movement Arrows Keybinds 0 Fullscreen 2 Font 24/Smallcaps Map View 76x50 Zoom Use 0% Tactical HUD 1 Map Filters NONE Filters NONE Steam X RUN: b61005e3-35ca-4d84-a8bf-3220d79e77c1